fUSD/lending_fUSD_20241224
["ID","MTS","AMOUNT","RATE_DAILY","PERIOD"]
[346522163,1735018296555,-903.8,0.00016986,2]
[346522164,1735018296564,-596.96,0.00016986,2]
[346522165,1735018296573,-807.94,0.00016986,2]
[346522166,1735018296582,-1456.76,0.00016986,2]
[346522167,1735018296591,-2643.91,0.00016986,2]
[346522168,1735018296600,-1308.53,0.00016986,2]
[346522169,1735018296609,-794.16,0.00016986,2]
[346522170,1735018296618,-1213.29,0.00016986,2]
[346522171,1735018296627,-1676.79,0.00016986,2]
[346522172,1735018296636,-500.0,0.00016986,2]
[346522173,1735018296645,-1433.69,0.00016986,2]
[346522174,1735018296655,-5281.26,0.00016986,2]
[346522175,1735018296664,-677.19,0.00016986,2]
[346522176,1735018296673,-1372.29,0.00016986,2]
[346522177,1735018296682,-1023.69,0.00016986,2]
[346522178,1735018296691,-680.17,0.00016986,2]
[346522179,1735018296701,-552.15,0.00016986,2]
[346522180,1735018296710,-500.0,0.00016986,2]
[346522181,1735018296719,-705.72,0.00016986,2]
[346522182,1735018296729,-674.8,0.00016986,2]
[346522183,1735018296738,-4867.25,0.00016986,2]
[346522184,1735018296748,-3213.6,0.00016986,2]
[346522185,1735018296757,-854.26,0.00016986,2]
[346522186,1735018296766,-1660.69,0.00016986,2]
[346522187,1735018296775,-500.0,0.00016986,2]
[346522188,1735018296784,-548.87,0.00016986,2]
[346522189,1735018296793,-826.14,0.00016986,2]
[346522190,1735018296802,-500.0,0.00016986,2]
[346522191,1735018296812,-14771.78,0.00016986,2]
[346522192,1735018296821,-619.38,0.00016986,2]
[346522193,1735018296830,-3293.16,0.00016986,2]
[346522194,1735018296839,-500.0,0.00016986,2]
[346522195,1735018296849,-500.0,0.00016986,2]
[346522196,1735018296858,-527.97,0.00016986,2]
[346522197,1735018296867,-500.0,0.00016986,2]
[346522198,1735018296876,-151.0,0.00016986,2]
[346522199,1735018296885,-500.0,0.00016986,2]
[346522200,1735018296895,-1071.77,0.00016986,2]
[346522201,1735018296904,-153.0,0.00016986,2]
[346522202,1735018296914,-153.0,0.00016986,2]
[346522203,1735018296923,-153.0,0.00016986,2]
[346522204,1735018296934,-153.0,0.00016986,2]
[346522205,1735018296943,-153.0,0.00016986,2]
[346522206,1735018296952,-153.0,0.00016986,2]
[346522207,1735018296963,-153.0,0.00016986,2]
[346522208,1735018296972,-153.0,0.00016986,2]
[346522209,1735018296981,-153.0,0.00016986,2]
[346522210,1735018296990,-153.0,0.00016986,2]
[346522211,1735018296999,-153.0,0.00016986,2]
[346522212,1735018297008,-153.0,0.00016986,2]
[346522213,1735018297017,-153.0,0.00016986,2]
[346522214,1735018297027,-1000.0,0.0001699,2]
[346522215,1735018297042,-1000.0,0.0001699,2]
[346522216,1735018297051,-1000.0,0.0001699,2]
[346522217,1735018297061,-1000.0,0.00016994,2]
[346522218,1735018297070,-153.0,0.00016996,2]
[346522219,1735018297079,-153.0,0.00016996,2]
[346522220,1735018297088,-153.0,0.00016996,2]
[346522221,1735018297098,-153.0,0.00016996,2]
[346522222,1735018297107,-153.0,0.00016996,2]
[346522223,1735018297117,-153.0,0.00016996,2]
[346522224,1735018297125,-153.0,0.00016996,2]
[346522225,1735018297135,-153.0,0.00016996,2]
[346522226,1735018297144,-153.0,0.00016996,2]
[346522227,1735018297154,-153.0,0.00016996,2]
[346522228,1735018297164,-153.0,0.00016996,2]
[346522229,1735018297172,-153.0,0.00016996,2]
[346522230,1735018297182,-153.0,0.00016996,2]
[346522231,1735018297192,-153.0,0.00016996,2]
[346522232,1735018297201,-550.0,0.00017,2]
[346522233,1735018297210,-553.36804499,0.00017006,2]
[346522234,1735018297219,-1627.96297763,0.00017008,2]
[346522235,1735018297228,-151.967459,0.00017027,2]
[346522236,1735018297238,-151.0,0.00017027,2]
[346522237,1735018297247,-150.0,0.00017053,2]
[346522238,1735018297257,-872.7,0.00017101,2]
[346522239,1735018297266,-436.35,0.00017101,2]
[346522240,1735018297275,-500.0,0.00017122,2]
[346522241,1735018297285,-823.0,0.00017145,2]
[346522242,1735018297295,-150.0,0.00017209,2]
[346522243,1735018297304,-150.0,0.00017246,2]
[346522244,1735018297314,-640.42059335,0.00017259,2]
[346522245,1735018297323,-500.0,0.00017259,2]
[346522246,1735018297332,-500.0,0.00017259,2]
[346522247,1735018297341,-535.15,0.00017259,2]
[346522248,1735018297350,-500.0,0.00017259,2]
[346522249,1735018297359,-239.64523003,0.00017259,2]
[346522250,1735018297368,-609.1,0.00017259,2]
[346522251,1735018297378,-265.59708773,0.00017259,2]
[346522252,1735018297387,-500.0,0.00017259,2]
[346522253,1735018297396,-500.0,0.00017259,2]
[346522254,1735018297406,-500.0,0.00017259,2]
[346522255,1735018297414,-500.0,0.00017259,2]
[346522256,1735018297423,-500.0,0.00017259,2]
[346522257,1735018297432,-500.0,0.00017259,2]
[346522258,1735018297441,-380.81655804,0.00017259,2]
[346522259,1735018297450,-500.0,0.00017259,2]
[346522260,1735018297460,-500.0,0.00017259,2]
[346522261,1735018297470,-167.49425812,0.00017259,2]
[346522262,1735018297479,-500.0,0.00017259,2]
[346522263,1735018297488,-500.0,0.00017259,2]
[346522264,1735018297497,-500.0,0.00017259,2]
[346522265,1735018297507,-1508.76,0.00017259,2]
[346522266,1735018297516,-1465.72,0.00017259,2]
[346522267,1735018297526,-279.05,0.00017259,2]
[346522268,1735018297536,-500.0,0.00017259,2]
[346522269,1735018297545,-1465.24,0.00017259,2]
[346522270,1735018297555,-500.0,0.00017259,2]
[346522271,1735018297565,-500.0,0.00017259,2]
[346522272,1735018297575,-2919.0,0.00017259,2]
[346522273,1735018297585,-2253.9,0.00017259,2]
[346522274,1735018297594,-948.58038758,0.00017259,2]
[346522275,1735018297608,-2288.91961242,0.00017259,2]
[346522276,1735018297618,-794.47,0.00017259,2]
[346522277,1735018297627,-554.59,0.00017259,2]
[346522278,1735018297637,-188.82038757,0.00017259,2]
[346522279,1735018297980,-358.67365013,0.00013698,2]
[346522280,1735018297991,-141.32634987,0.00013698,2]
[346522281,1735018298000,-500.0,0.00013698,2]
[346522282,1735018298010,-500.0,0.00013698,2]
[346522283,1735018298019,-203.12,0.00013698,2]
[346522284,1735018298028,-290.4,0.00013972,2]
[346522285,1735018298038,-4248.68,0.0001452,2]
[346522286,1735018298047,-4248.68,0.00014794,2]
[346522287,1735018298056,-4248.68,0.00015068,2]
[346522288,1735018298065,-4248.68,0.00015342,2]
[346522289,1735018298074,-70.66387087,0.00015616,2]
[346522290,1735018298086,-4178.01612913,0.00015616,2]
[346522291,1735018298095,-2368.89388087,0.0001589,2]
[346522292,1735018298106,-1879.78611913,0.0001589,2]
[346522293,1735018298115,-521.4016709,0.00016164,2]
[346522294,1735018298126,-465.7110858,0.00016164,2]
[346522295,1735018298148,-500.0,0.00013972,2]
[346522296,1735018298159,-961.10460636,0.00016164,2]
[346522297,1735018298171,-2300.46263694,0.00016164,2]
[346522298,1735018298180,-4248.68,0.00016438,2]
[346522299,1735018298189,-4248.68,0.00016712,2]
[346522300,1735018298198,-746.80961243,0.00017259,2]
[346522301,1735018298208,-42.12292926,0.00017259,2]
[346522302,1735018298602,-500.0,0.00013698,2]
[346522303,1735018298611,-500.0,0.00013698,2]
[346522304,1735018298621,-520.26,0.00013972,2]
[346522305,1735018298631,-500.0,0.00014246,2]
[346522306,1735018298640,-467.56079916,0.0001452,2]
[346522307,1735018298649,-2704.94750524,0.00014931,2]
[346522308,1735018298660,-660.00000004,0.00014931,2]
[346522309,1735018298672,-2887.7316,0.00014931,2]
[346522311,1735018298683,-828.95903181,0.00014931,2]
[346522313,1735018298709,-1567.02283847,0.00014931,2]
[346522314,1735018298781,-23.19402444,0.00014931,2]
[346522315,1735018298791,-153.0,0.00016979,2]
[346522316,1735018298800,-153.0,0.00016979,2]
[346522317,1735018298809,-153.0,0.00016979,2]
[346522318,1735018298818,-153.0,0.00016979,2]
[346522319,1735018298828,-153.0,0.00016979,2]
[346522320,1735018298838,-4248.68,0.00016986,2]
[346522321,1735018298847,-457.87707074,0.00017259,2]
[346522322,1735018298857,-2816.14,0.00017259,2]
[346522323,1735018298867,-500.0,0.00017259,2]
[346522324,1735018298876,-955.57,0.00017259,2]
[346522325,1735018298886,-500.0,0.00017259,2]
[346522326,1735018298899,-500.0,0.00017259,2]
[346522327,1735018298908,-500.0,0.00017259,2]
[346522328,1735018298918,-908.11,0.00017259,2]
[346522329,1735018298927,-500.0,0.00017259,2]
[346522330,1735018298938,-500.0,0.00017259,2]
[346522331,1735018298947,-1028.08,0.00017259,2]
[346522332,1735018298957,-568.18,0.00017259,2]
[346522333,1735018298967,-683.69,0.00017259,2]
[346522334,1735018298977,-500.0,0.00017259,2]
[346522335,1735018298987,-1115.82,0.00017259,2]
[346522336,1735018298996,-722.75,0.00017259,2]
[346522337,1735018299006,-1499.78,0.00017259,2]
[346522338,1735018299015,-1265.66,0.00017259,2]
[346522339,1735018299026,-500.0,0.00017259,2]
[346522340,1735018299035,-7745.3,0.00017259,2]
[346522341,1735018299044,-954.82,0.00017259,2]
[346522342,1735018299054,-500.0,0.00017259,2]
[346522343,1735018299064,-500.0,0.00017259,2]
[346522344,1735018299073,-500.0,0.0001726,2]
[346522345,1735018299083,-500.0,0.0001726,2]
[346522346,1735018299092,-500.0,0.0001726,2]
[346522347,1735018299102,-500.0,0.0001726,2]
[346522348,1735018299111,-19.33696597,0.0001726,2]
[346522349,1735018299123,-482.28303403,0.0001726,2]
[346522350,1735018299133,-586.12,0.0001726,2]
[346522351,1735018299142,-500.0,0.0001726,2]
[346522352,1735018299153,-500.0,0.0001726,2]
[346522353,1735018299166,-500.0,0.0001726,2]
[346522354,1735018299175,-500.0,0.0001726,2]
[346522355,1735018299185,-500.0,0.0001726,2]
[346522356,1735018299194,-500.0,0.0001726,2]
[346522357,1735018299203,-500.71,0.0001726,2]
[346522358,1735018299213,-582.46,0.0001726,2]
[346522359,1735018299223,-500.0,0.0001726,2]
[346522360,1735018299233,-500.0,0.0001726,2]
[346522361,1735018299242,-584.84,0.0001726,2]
[346522362,1735018299252,-667.98,0.0001726,2]
[346522363,1735018299262,-500.0,0.0001726,2]
[346522364,1735018299271,-500.0,0.0001726,2]
[346522365,1735018299281,-500.0,0.0001726,2]
[346522366,1735018299291,-500.0,0.0001726,2]
[346522367,1735018299300,-215.18609591,0.0001726,2]
[346522368,1735018299310,-711.57,0.0001726,2]
[346522369,1735018299319,-500.0,0.0001726,2]
[346522370,1735018299328,-341.23079006,0.0001726,2]
[346522372,1735018565740,386.24,0.00011812,2]
[346522381,1735019420646,366.92,0.0001085,2]
[346522399,1735019432347,-250.0,0.00012728,2]
[346522400,1735019432358,-887.13153468,0.00012731,2]
[346522401,1735019432369,-310.05771303,0.00012731,2]
[346522402,1735019432380,-1479.91075229,0.00012731,2]
[346522403,1735019432390,-1000.0,0.00012787,2]
[346522404,1735019432399,-250.0,0.00012817,2]
[346522405,1735019432409,-168.98,0.00012834,2]
[346522406,1735019432419,-1500.0,0.00012925,2]
[346522407,1735019432428,-13251.9937177,0.00013005,2]
[346522408,1735019432454,-2074.6726,0.00013005,2]
[346522409,1735019432519,-1103.55713475,0.00013005,2]
[346522410,1735019432530,-281.16490301,0.00013005,2]
[346522411,1735019432555,-818.264965,0.00013005,2]
[346522412,1735019432567,-1000.398,0.00013005,2]
[346522413,1735019432579,-5369.94867954,0.00013005,2]
[346522414,1735019432590,-323.11,0.00013048,2]
[346522415,1735019432600,-366.92,0.00013114,2]
[346522416,1735019432610,-427.43040315,0.00013432,2]
[346522417,1735019432620,-201.56,0.00013432,2]
[346522418,1735019432630,-200.64,0.00013432,2]
[346522419,1735019432640,-150.0,0.00013441,2]
[346522420,1735019432650,-201.16,0.0001345,2]
[346522421,1735019432660,-203.85,0.00013457,2]
[346522422,1735019432669,-200.23,0.0001347,2]
[346522423,1735019432679,-201.38,0.00013492,2]
[346522424,1735019432688,-203.44,0.00013529,2]
[346522425,1735019432698,-200.74,0.00013596,2]
[346522426,1735019432708,-202.68,0.00013597,2]
[346522427,1735019432718,-203.03,0.00013597,2]
[346522429,1735019432727,-202.49,0.00013597,2]
[346522431,1735019432737,-201.74,0.00013597,2]
[346522433,1735019432747,-200.18,0.00013597,2]
[346522435,1735019432756,-202.8,0.00013597,2]
[346522437,1735019432766,-201.52,0.00013597,2]
[346522439,1735019432775,-202.46,0.00013597,2]
[346522441,1735019432785,-202.71,0.00013597,2]
[346522443,1735019432795,-201.05,0.00013597,2]
[346522445,1735019432805,-5392.1424,0.00013598,2]
[346522447,1735019432814,-5665.0006,0.00013598,2]
[346522449,1735019432824,-202.35,0.00013598,2]
[346522451,1735019432833,-202.47,0.00013598,2]
[346522453,1735019432843,-1000.0,0.00013598,2]
[346522455,1735019432852,-203.54,0.00013598,2]
[346522457,1735019432861,-203.91,0.00013598,2]
[346522459,1735019432871,-200.15,0.00013598,2]
[346522460,1735019432880,-203.9,0.00013598,2]
[346522461,1735019432892,-203.25,0.00013598,2]
[346522462,1735019432902,-202.5,0.00013598,2]
[346522463,1735019432912,-201.99,0.00013598,2]
[346522464,1735019432921,-201.09,0.00013598,2]
[346522465,1735019432931,-200.03,0.00013598,2]
[346522467,1735019432940,-203.27,0.00013598,2]
[346522468,1735019432949,-200.48,0.00013598,2]
[346522469,1735019432958,-4810.7573,0.00013598,2]
[346522470,1735019432969,-311.0401,0.00013598,2]
[346522471,1735019432978,-507.7984,0.00013598,2]
[346522472,1735019432988,-698.4842,0.00013598,2]
[346522473,1735019432997,-191.15,0.00013629,2]
[346522474,1735019433006,-191.15,0.00013663,2]
[346522476,1735019433015,-191.15,0.00013697,2]
[346522477,1735019433024,-460.7615686,0.00013698,2]
[346522478,1735019433034,-507.25030818,0.00013698,2]
[346522479,1735019433043,-504.38867885,0.00013698,2]
[346522480,1735019433053,-364.77342205,0.00013698,2]
[346522481,1735019433063,-286.27720731,0.00013698,2]
[346522482,1735019433072,-500.0,0.00013698,2]
[346522483,1735019433082,-500.0,0.00013698,2]
[346522484,1735019433092,-500.0,0.00013698,2]
[346522485,1735019433101,-500.0,0.00013698,2]
[346522486,1735019433112,-500.0,0.00013698,2]
[346522487,1735019433121,-500.0,0.00013698,2]
[346522488,1735019433131,-500.0,0.00013698,2]
[346522489,1735019433142,-500.0,0.00013698,2]
[346522490,1735019433151,-500.0,0.00013698,2]
[346522491,1735019433161,-500.0,0.00013698,2]
[346522492,1735019433171,-500.0,0.00013698,2]
[346522493,1735019433180,-500.0,0.00013698,2]
[346522494,1735019433190,-500.0,0.00013698,2]
[346522495,1735019433200,-500.0,0.00013698,2]
[346522496,1735019433211,-648.77546544,0.00013698,2]
[346522497,1735019433221,-500.0,0.00013698,2]
[346522498,1735019433231,-504.33634552,0.00013698,2]
[346522499,1735019433242,-500.0,0.00013698,2]
[346522500,1735019433252,-500.0,0.00013698,2]
[346522501,1735019433262,-500.0,0.00013698,2]
[346522502,1735019433272,-500.0,0.00013698,2]
[346522503,1735019433282,-500.0,0.00013698,2]
[346522504,1735019433293,-500.0,0.00013698,2]
[346522505,1735019433302,-508.61903338,0.00013698,2]
[346522506,1735019433312,-500.0,0.00013698,2]
[346522507,1735019433323,-523.51108794,0.00013698,2]
[346522508,1735019433333,-500.0,0.00013698,2]
[346522509,1735019433343,-500.0,0.00013698,2]
[346522510,1735019433353,-500.0,0.00013698,2]
[346522511,1735019433363,-500.0,0.00013698,2]
[346522512,1735019433372,-500.0,0.00013698,2]
[346522513,1735019433382,-500.0,0.00013698,2]
[346522514,1735019433394,-500.0,0.00013698,2]
[346522515,1735019433404,-500.0,0.00013698,2]
[346522516,1735019433414,-500.0,0.00013698,2]
[346522517,1735019433424,-500.0,0.00013698,2]
[346522518,1735019433434,-500.0,0.00013698,2]
[346522519,1735019433444,-547.29,0.00013698,2]
[346522520,1735019433454,-503.08728873,0.00013698,2]
[346522521,1735019433463,-500.0,0.00013698,2]
[346522522,1735019433473,-500.0,0.00013698,2]
[346522523,1735019433483,-500.0,0.00013698,2]
[346522524,1735019433493,-500.0,0.00013698,2]
[346522525,1735019433503,-500.0,0.00013698,2]
[346522526,1735019433513,-500.0,0.00013698,2]
[346522527,1735019433523,-500.0,0.00013698,2]
[346522528,1735019433533,-500.0,0.00013698,2]
[346522529,1735019433544,-437.43081453,0.00013698,2]
[346522530,1735019433555,-500.0,0.00013698,2]
[346522531,1735019433565,-500.0,0.00013698,2]
[346522532,1735019433575,-505.40827491,0.00013698,2]
[346522533,1735019433585,-500.0,0.00013698,2]
[346522534,1735019433595,-502.76934244,0.00013698,2]
[346522535,1735019433605,-500.0,0.00013698,2]
[346522536,1735019433615,-500.0,0.00013698,2]
[346522537,1735019433625,-500.0,0.00013698,2]
[346522538,1735019433635,-500.0,0.00013698,2]
[346522539,1735019433647,-500.0,0.00013698,2]
[346522540,1735019433657,-500.0,0.00013698,2]
[346522541,1735019433667,-500.0,0.00013698,2]
[346522542,1735019433678,-500.0,0.00013698,2]
[346522543,1735019433688,-500.0,0.00013698,2]
[346522544,1735019433698,-500.0,0.00013698,2]
[346522545,1735019433708,-500.0,0.00013698,2]
[346522546,1735019433718,-500.0,0.00013698,2]
[346522547,1735019433728,-508.41790627,0.00013698,2]
[346522548,1735019433738,-500.0,0.00013698,2]
[346522549,1735019433748,-500.0,0.00013698,2]
[346522550,1735019433758,-500.0,0.00013698,2]
[346522551,1735019433768,-500.0,0.00013698,2]
[346522552,1735019433777,-483.97683953,0.00013698,2]
[346522553,1735019433787,-500.0,0.00013698,2]
[346522554,1735019433797,-502.10027757,0.00013698,2]
[346522555,1735019433806,-500.0,0.00013698,2]
[346522556,1735019433816,-500.0,0.00013698,2]
[346522557,1735019433826,-500.0,0.00013698,2]
[346522558,1735019433836,-500.0,0.00013698,2]
[346522559,1735019433845,-500.0,0.00013698,2]
[346522560,1735019433855,-500.0,0.00013698,2]
[346522561,1735019433864,-500.0,0.00013698,2]
[346522562,1735019433875,-500.0,0.00013698,2]
[346522563,1735019433884,-500.0,0.00013698,2]
[346522564,1735019433895,-500.0,0.00013698,2]
[346522565,1735019433904,-500.0,0.00013698,2]
[346522566,1735019433914,-500.0,0.00013698,2]
[346522567,1735019433924,-500.0,0.00013698,2]
[346522568,1735019433933,-500.0,0.00013698,2]
[346522569,1735019433943,-500.0,0.00013698,2]
[346522570,1735019433952,-500.0,0.00013698,2]
[346522571,1735019433962,-500.0,0.00013698,2]
[346522572,1735019433971,-500.0,0.00013698,2]
[346522573,1735019433981,-500.0,0.00013698,2]
[346522574,1735019433990,-500.0,0.00013698,2]
[346522575,1735019434000,-500.0,0.00013698,2]
[346522576,1735019434010,-500.0,0.00013698,2]
[346522577,1735019434019,-500.0,0.00013698,2]
[346522578,1735019434029,-504.63732268,0.00013698,2]
[346522579,1735019434039,-500.0,0.00013698,2]
[346522580,1735019434048,-500.0,0.00013698,2]
[346522581,1735019434257,-500.0,0.00013698,2]
[346522582,1735019434271,-500.0,0.00013698,2]
[346522583,1735019434281,-500.0,0.00013698,2]
[346522584,1735019434291,-506.32849422,0.00013698,2]
[346522585,1735019434301,-500.0,0.00013698,2]
[346522586,1735019434310,-500.0,0.00013698,2]
[346522587,1735019434319,-500.0,0.00013698,2]
[346522588,1735019434329,-500.0,0.00013698,2]
[346522589,1735019434338,-500.0,0.00013698,2]
[346522590,1735019434347,-500.0,0.00013698,2]
[346522591,1735019434357,-500.0,0.00013698,2]
[346522592,1735019434366,-500.0,0.00013698,2]
[346522593,1735019434375,-500.0,0.00013698,2]
[346522594,1735019434384,-500.0,0.00013698,2]
[346522595,1735019434395,-500.0,0.00013698,2]
[346522596,1735019434406,-500.0,0.00013698,2]
[346522597,1735019434415,-500.0,0.00013698,2]
[346522598,1735019434424,-500.0,0.00013698,2]
[346522599,1735019434434,-500.0,0.00013698,2]
[346522600,1735019434443,-500.0,0.00013698,2]
[346522601,1735019434453,-500.0,0.00013698,2]
[346522602,1735019434462,-500.0,0.00013698,2]
[346522603,1735019434471,-500.0,0.00013698,2]
[346522604,1735019434480,-506.10454604,0.00013698,2]
[346522605,1735019434490,-500.0,0.00013698,2]
[346522606,1735019434499,-500.0,0.00013698,2]
[346522607,1735019434508,-500.0,0.00013698,2]
[346522608,1735019434518,-549.19,0.00013698,2]
[346522609,1735019434527,-500.0,0.00013698,2]
[346522610,1735019434536,-500.0,0.00013698,2]
[346522611,1735019434547,-500.0,0.00013698,2]
[346522612,1735019434563,-500.0,0.00013698,2]
[346522613,1735019434572,-500.0,0.00013698,2]
[346522614,1735019434581,-500.0,0.00013698,2]
[346522615,1735019434591,-500.0,0.00013698,2]
[346522616,1735019434602,-502.17223669,0.00013698,2]
[346522617,1735019434612,-503.23508779,0.00013698,2]
[346522618,1735019434621,-500.0,0.00013698,2]
[346522619,1735019434631,-500.0,0.00013698,2]
[346522620,1735019434640,-506.94179334,0.00013698,2]
[346522621,1735019434650,-502.46154362,0.00013698,2]
[346522622,1735019434659,-500.0,0.00013698,2]
[346522623,1735019434668,-79.5793431,0.00013698,2]
[346522629,1735019438119,-420.4206569,0.00013698,2]
[346522630,1735019438128,-88.74723672,0.00013698,2]
[346522631,1735019438178,-411.25276328,0.00013698,2]
[346522632,1735019438187,-500.0,0.00013698,2]
[346522633,1735019438197,-458.95426223,0.00013698,2]
[346522634,1735019438205,-500.0,0.00013698,2]
[346522635,1735019438214,-500.0,0.00013698,2]
[346522636,1735019438223,-500.0,0.00013698,2]
[346522637,1735019438232,-503.39606303,0.00013698,2]
[346522638,1735019438241,-500.0,0.00013698,2]
[346522639,1735019438250,-500.0,0.00013698,2]
[346522640,1735019438259,-500.0,0.00013698,2]
[346522641,1735019438268,-649.29657929,0.00013698,2]
[346522642,1735019438278,-500.0,0.00013698,2]
[346522643,1735019438287,-503.91013342,0.00013698,2]
[346522644,1735019438296,-500.0,0.00013698,2]
[346522645,1735019438305,-500.0,0.00013698,2]
[346522646,1735019438314,-500.0,0.00013698,2]
[346522647,1735019438323,-500.0,0.00013698,2]
[346522648,1735019438331,-234.71180423,0.00013698,2]
[346522649,1735019438343,-265.28819577,0.00013698,2]
[346522650,1735019438352,-10.23039476,0.00013698,2]
[346522651,1735019438371,-489.76960524,0.00013698,2]
[346522652,1735019438380,-500.0,0.00013698,2]
[346522653,1735019438389,-500.0,0.00013698,2]
[346522654,1735019438399,-500.0,0.00013698,2]
[346522655,1735019438408,-500.0,0.00013698,2]
[346522656,1735019438417,-500.0,0.00013698,2]
[346522657,1735019438426,-500.0,0.00013698,2]
[346522658,1735019438435,-506.28895985,0.00013698,2]
[346522659,1735019438444,-500.0,0.00013698,2]
[346522660,1735019438454,-500.0,0.00013698,2]
[346522661,1735019438463,-504.5892753,0.00013698,2]
[346522662,1735019438473,-512.9229597,0.00013698,2]
[346522663,1735019438482,-500.0,0.00013698,2]
[346522664,1735019438492,-500.0,0.00013698,2]
[346522665,1735019438501,-500.0,0.00013698,2]
[346522666,1735019438511,-162.73919991,0.00013698,2]
[346522667,1735019438526,-337.26080009,0.00013698,2]
[346522668,1735019438535,-44.72055302,0.00013698,2]
[346522669,1735019438548,-455.27944698,0.00013698,2]
[346522670,1735019438560,-500.0,0.00013698,2]
[346522671,1735019438569,-500.0,0.00013698,2]
[346522672,1735019438578,-500.0,0.00013698,2]
[346522673,1735019438587,-111.94033868,0.00013698,2]
[346522674,1735019438600,-388.05966132,0.00013698,2]
[346522675,1735019438609,-500.0,0.00013698,2]
[346522676,1735019438619,-500.0,0.00013698,2]
[346522677,1735019438628,-500.0,0.00013698,2]
[346522678,1735019438638,-500.0,0.00013698,2]
[346522679,1735019438647,-500.0,0.00013698,2]
[346522680,1735019438656,-500.0,0.00013698,2]
[346522681,1735019438665,-500.0,0.00013698,2]
[346522682,1735019438675,-500.0,0.00013698,2]
[346522683,1735019438685,-500.0,0.00013698,2]
[346522684,1735019438694,-501.94989321,0.00013698,2]
[346522685,1735019438703,-512.13400453,0.00013698,2]
[346522686,1735019438712,-608.65822604,0.00013698,2]
[346522687,1735019438720,-500.0,0.00013698,2]
[346522688,1735019438729,-500.0,0.00013698,2]
[346522689,1735019438738,-510.12839449,0.00013698,2]
[346522690,1735019438748,-500.0,0.00013698,2]
[346522691,1735019438757,-500.0,0.00013698,2]
[346522692,1735019438766,-500.0,0.00013698,2]
[346522693,1735019438775,-500.0,0.00013698,2]
[346522694,1735019438784,-500.0,0.00013698,2]
[346522695,1735019438793,-500.0,0.00013698,2]
[346522696,1735019438802,-500.0,0.00013698,2]
[346522697,1735019438811,-500.55956544,0.00013698,2]
[346522698,1735019438820,-501.59981604,0.00013698,2]
[346522699,1735019438830,-608.91097912,0.00013698,2]
[346522700,1735019438838,-500.0,0.00013698,2]
[346522701,1735019438847,-500.0,0.00013698,2]
[346522702,1735019438857,-504.18610523,0.00013698,2]
[346522703,1735019438866,-500.0,0.00013698,2]
[346522704,1735019438875,-500.0,0.00013698,2]
[346522705,1735019438884,-500.0,0.00013698,2]
[346522706,1735019438893,-500.0,0.00013698,2]
[346522707,1735019438902,-500.0,0.00013698,2]
[346522708,1735019438912,-500.0,0.00013698,2]
[346522709,1735019438921,-747.46,0.00013698,2]
[346522710,1735019438930,-500.0,0.00013698,2]
[346522711,1735019438939,-503.45442436,0.00013698,2]
[346522712,1735019438948,-500.0,0.00013698,2]
[346522713,1735019438957,-500.0,0.00013698,2]